[Event "5th Thessaloniki SKG Open-B 2024"]
[Site "Thessaloniki"]
[Date "2024.08.08"]
[Round "4.4"]
[White "Naci, Igli"]
[Black "Ropokis, Christos"]
[Result "1-0"]
[ECO "B46"]
[WhiteElo "1800"]
[BlackElo "1735"]
[Annotator "NA RC"]
[PlyCount "135"]
[EventDate "2024.08.05"]
[EventType "swiss"]
[EventCountry "GRE"]
[SourceTitle "playchess.com"]
[Source "ChessBase"]
[SourceQuality "1"]
[TimeControl "40/5400+30:1800+30"]

1. e4 {[%emt 0:00:02]} c5 {[%emt 0:07:23]} 2. Nf3 {[%emt 0:00:06]} Nc6 {[%emt 0:00:06]} 3. d4 {[%emt 0:00:18]} cxd4 {[%emt 0:00:05]} 4. Nxd4 {[%emt 0:00:05]} e6 {[%emt 0:00:17]} 5. Nc3 {[%emt 0:03:02]} a6 {[%emt 0:01:11]} 6. a3 {[%emt 0:00:28]} d5 {[%emt 0:10:21]} 7. exd5 {[%emt 0:01:39]} exd5 {[%emt 0:01:39]} 8. Be2 {[%emt 0:03:08]} Nf6 {[%emt 0:04:36]} 9. O-O {[%emt 0:02:42]} Be7 {[%emt 0:03:55]} 10. Re1 {[%emt 0:02:14]} O-O {[%emt 0:00:30]} 11. Be3 {[%emt 0:02:48]} Qc7 {[%emt 0:09:50]} 12. Bf3 {[%emt 0:00:55]} Rd8 {[%emt 0:05:44]} 13. Qd2 {[%emt 0:11:17]} Ne5 {[%emt 0:04:06]} 14. Bf4 {[%emt 0:05:51]} Nxf3+ {[%emt 0:01:19]} 15. Nxf3 {[%emt 0:00:10]} Bd6 {[%emt 0:00:53]} 16. Bg5 {[%emt 0:05:47]} Be6 {[%emt 0:06:58]} 17. Bxf6 {[%emt 0:02:26]} gxf6 {[%emt 0:00:08]} 18. Qh6 {[%emt 0:00:24]} Bf8 {[%emt 0:12:11]} 19. Qxf6 {[%emt 0:02:02]} Bg7 {[%emt 0:00:56]} 20. Qh4 {[%emt 0:07:32]} Qc4 {[%emt 0:03:39]} 21. Qg3 {[%emt 0:08:06]} Qg4 {[%emt 0:01:03]} 22. Ng5 {[%emt 0:04:04]} Qxg3 {[%emt 0:01:57]} 23. hxg3 {[%emt 0:00:06]} Re8 {[%emt 0:06:20]} 24. Nxe6 {[%emt 0:04:49]} fxe6 {[%emt 0:00:06]} 25. Nd1 {[%emt 0:05:52]} e5 {[%emt 0:06:14]} 26. c3 {[%emt 0:04:22]} d4 {[%emt 0:04:29]} 27. Re4 {[%emt 0:02:10]} Rac8 {[%emt 0:01:42]} 28. Rc1 {[%emt 0:01:00]} Bh6 {[%emt 0:01:57]} 29. Rb1 {[%emt 0:00:27]} Bg7 {[%emt 0:00:34]} 30. Kf1 {[%emt 0:01:26]} b5 {[%emt 0:00:25]} 31. Ke2 {[%emt 0:04:39]} a5 {[%emt 0:01:41]} 32. cxd4 {[%emt 0:04:23]} exd4 {[%emt 0:00:18]} 33. Rxe8+ {[%emt 0:00:07]} Rxe8+ {[%emt 0:00:01]} 34. Kd2 {[%emt 0:00:18]} Rc8 {[%emt 0:01:59]} 35. Rc1 {[%emt 0:00:20]} Rxc1 {[%emt 0:00:16]} 36. Kxc1 {[%emt 0:00:01]} Kf7 {[%emt 0:00:01]} 37. Kd2 {[%emt 0:00:43]} Ke6 {[%emt 0:00:11]} 38. Kd3 {[%emt 0:00:12]} a4 {[%emt 0:01:00]} 39. f3 {[%emt 0:02:36]} Kd5 {[%emt 0:01:36]} 40. Nf2 {[%emt 0:00:00]} Bf8 {[%emt 0:00:00]} 41. Ne4 {[%emt 0:01:51]} h6 {[%emt 0:11:54]} 42. f4 {[%emt 0:04:09]} b4 {[%emt 0:03:07]} 43. axb4 {[%emt 0:01:22]} Bxb4 {[%emt 0:00:06]} 44. g4 {[%emt 0:01:11]} Bf8 {[%emt 0:03:42]} 45. g5 {[%emt 0:05:47]} hxg5 {[%emt 0:02:43]} 46. Nxg5 {[%emt 0:00:13]} a3 {[%emt 0:00:30]} 47. bxa3 {[%emt 0:00:49]} Bxa3 {[%emt 0:00:06]} 48. Nf3 {[%emt 0:02:20]} Bc1 {[%emt 0:05:07]} 49. Nd2 {[%emt 0:03:59]} Ba3 {[%emt 0:01:50]} 50. Nb3 {[%emt 0:00:41]} Bd6 {[%emt 0:05:54]} 51. g3 {[%emt 0:00:08]} Be7 {[%emt 0:01:39]} 52. Nxd4 {[%emt 0:00:05]} Bf6 {[%emt 0:00:57]} 53. Ne2 {[%emt 0:00:13]} Ke6 {[%emt 0:00:40]} 54. Ke4 {[%emt 0:00:10]} Be7 {[%emt 0:00:25]} 55. g4 {[%emt 0:00:22]} Kf6 {[%emt 0:00:13]} 56. Nd4 {[%emt 0:01:31]} Kg6 {[%emt 0:00:29]} 57. Nf3 {[%emt 0:00:47]} Kf6 {[%emt 0:01:04]} 58. g5+ {[%emt 0:01:10]} Kg6 {[%emt 0:00:13]} 59. Ke5 {[%emt 0:01:55]} Bd8 {[%emt 0:00:53]} 60. Ke6 {[%emt 0:00:30]} Kg7 {[%emt 0:01:21]} 61. f5 {[%emt 0:00:30]} Kf8 {[%emt 0:00:00]} 62. f6 {[%emt 0:00:30]} Ba5 {[%emt 0:00:07]} 63. Ne5 {[%emt 0:00:48]} Bb4 {[%emt 0:00:17]} 64. Nd7+ {[%emt 0:04:19]} Kg8 {[%emt 0:00:16]} 65. f7+ {[%emt 0:00:34]} Kg7 {[%emt 0:00:02]} 66. f8=Q+ {[%emt 0:18:59]} Bxf8 {[%emt 0:02:18]} 67. Nxf8 {[%emt 0:00:00]} Kxf8 {[%emt 0:00:00]} 68. Kf6 {[%emt 0:00:00]} 1-0

[Event "5th Thessaloniki SKG Open-B 2024"]
[Site "Thessaloniki"]
[Date "2024.08.08"]
[Round "4.5"]
[White "Balafoutas, Alexandros"]
[Black "Seretis, Nikolaos G"]
[Result "0-1"]
[ECO "C00"]
[WhiteElo "1764"]
[BlackElo "1675"]
[Annotator "NA RC"]
[PlyCount "102"]
[EventDate "2024.08.05"]
[EventType "swiss"]
[EventCountry "GRE"]
[SourceTitle "playchess.com"]
[Source "ChessBase"]
[SourceQuality "1"]
[TimeControl "40/5400+30:1800+30"]

1. e4 {[%emt 0:00:08]} c5 {[%emt 0:00:07]} 2. Nf3 {[%emt 0:00:29]} e6 {[%emt 0:00:13]} 3. d3 {[%emt 0:01:06]} Nc6 {[%emt 0:00:17]} 4. g3 {[%emt 0:00:16]} Nf6 {[%emt 0:00:48]} 5. Bg2 {[%emt 0:00:20]} d5 {[%emt 0:00:10]} 6. Qe2 {[%emt 0:00:30]} Be7 {[%emt 0:00:07]} 7. O-O {[%emt 0:00:13]} O-O {[%emt 0:00:07]} 8. e5 {[%emt 0:00:14]} Nd7 {[%emt 0:00:09]} 9. c4 {[%emt 0:05:05]} d4 {[%emt 0:00:09]} 10. h4 {[%emt 0:00:40]} h6 {[%emt 0:00:15]} 11. Re1 {[%emt 0:06:53]} Re8 {[%emt 0:00:15]} 12. Nbd2 {[%emt 0:08:55]} Qc7 {[%emt 0:00:33]} 13. Nf1 {[%emt 0:00:56]} a6 {[%emt 0:01:52]} 14. Bf4 {[%emt 0:02:33]} b5 {[%emt 0:01:09]} 15. b3 {[%emt 0:03:47]} Bb7 {[%emt 0:00:26]} 16. N1h2 {[%emt 0:01:19]} bxc4 {[%emt 0:02:51]} 17. bxc4 {[%emt 0:00:11]} Nb6 {[%emt 0:00:27]} 18. a4 {[%emt 0:04:17]} a5 {[%emt 0:03:11]} 19. Ng4 {[%emt 0:06:18]} Nd7 {[%emt 0:17:05]} 20. Nd2 {[%emt 0:12:38]} Nb4 {[%emt 0:03:54]} 21. Ne4 {[%emt 0:05:32]} Bxe4 {[%emt 0:06:49]} 22. Bxe4 {[%emt 0:05:53]} Rab8 {[%emt 0:01:08]} 23. Nxh6+ {[%emt 0:02:28]} gxh6 {[%emt 0:04:29]} 24. Qg4+ {[%emt 0:02:21]} Kh8 {[%emt 0:10:05]} 25. Bxh6 {[%emt 0:09:14]} Bf8 {[%emt 0:05:27]} 26. Qh5 {[%emt 0:01:42]} Bg7 {[%emt 0:04:39]} 27. Bxg7+ {[%emt 0:06:25]} Kxg7 {[%emt 0:00:13]} 28. Qh7+ {[%emt 0:01:11]} Kf8 {[%emt 0:00:15]} 29. Qh6+ {[%emt 0:02:56]} Ke7 {[%emt 0:00:25]} 30. Qg5+ {[%emt 0:00:16]} f6 {[%emt 0:01:49]} 31. Qg7+ {[%emt 0:00:32]} Kd8 {[%emt 0:00:12]} 32. exf6 {[%emt 0:00:26]} Nc2 {[%emt 0:02:37]} 33. f7 {[%emt 0:01:42]} Rf8 {[%emt 0:00:23]} 34. Bg6 {[%emt 0:03:01]} Qd6 {[%emt 0:01:50]} 35. h5 {[%emt 0:02:21]} Nxa1 {[%emt 0:00:35]} 36. Rxa1 {[%emt 0:00:28]} Kc7 {[%emt 0:02:40]} 37. h6 {[%emt 0:00:47]} Ne5 {[%emt 0:02:21]} 38. Bh5 {[%emt 0:00:41]} Nd7 {[%emt 0:04:52]} 39. Re1 {[%emt 0:00:20]} e5 {[%emt 0:01:05]} 40. g4 {[%emt 0:00:00]} Qf6 {[%emt 0:00:00]} 41. g5 {[%emt 0:12:01]} Qf4 {[%emt 0:12:32]} 42. h7 {[%emt 0:01:24]} Qh4 {[%emt 0:01:01]} 43. Be2 {[%emt 0:03:34]} e4 {[%emt 0:07:11]} 44. dxe4 {[%emt 0:06:21]} Qxe4 {[%emt 0:01:12]} 45. Qg8 {[%emt 0:00:37]} Qh4 {[%emt 0:02:04]} 46. Kg2 {[%emt 0:01:28]} Rb3 {[%emt 0:04:25]} 47. Bf3 {[%emt 0:04:34]} Rb2 {[%emt 0:04:00]} 48. Rf1 {[%emt 0:00:06]} Ne5 {[%emt 0:14:34]} 49. Qg7 {[%emt 0:03:20]} Nxf3 {[%emt 0:01:50]} 50. Kxf3 {[%emt 0:00:41]} Rb3+ {[%emt 0:00:40]} 51. Ke2 {[%emt 0:00:33]} Qe4+ {[%emt 0:00:14]} 0-1

[Event "5th Thessaloniki SKG Open-B 2024"]
[Site "Thessaloniki"]
[Date "2024.08.08"]
[Round "4.6"]
[White "Triantaphylidis, Alexandros I"]
[Black "Pastras, Ioannis"]
[Result "1-0"]
[ECO "D55"]
[WhiteElo "1745"]
[BlackElo "1725"]
[Annotator "NA RC"]
[PlyCount "71"]
[EventDate "2024.08.05"]
[EventType "swiss"]
[EventCountry "GRE"]
[SourceTitle "playchess.com"]
[Source "ChessBase"]
[SourceQuality "1"]
[TimeControl "40/5400+30:1800+30"]

1. d4 {[%emt 0:00:03]} Nf6 {[%emt 0:06:45]} 2. c4 {[%emt 0:00:03]} e6 {[%emt 0:00:05]} 3. Nc3 {[%emt 0:00:09]} d5 {[%emt 0:00:49]} 4. cxd5 {[%emt 0:00:06]} exd5 {[%emt 0:00:29]} 5. Bg5 {[%emt 0:00:08]} Be7 {[%emt 0:00:11]} 6. e3 {[%emt 0:00:06]} O-O {[%emt 0:00:06]} 7. Bd3 {[%emt 0:00:03]} h6 {[%emt 0:00:12]} 8. Bh4 {[%emt 0:00:02]} b6 {[%emt 0:03:25]} 9. Nf3 {[%emt 0:00:06]} Bb7 {[%emt 0:02:36]} 10. O-O {[%emt 0:00:07]} Nbd7 {[%emt 0:01:54]} 11. Qc2 {[%emt 0:00:03]} Re8 {[%emt 0:07:28]} 12. Bf5 {[%emt 0:01:43]} c5 {[%emt 0:09:41]} 13. Rad1 {[%emt 0:00:16]} c4 {[%emt 0:07:03]} 14. Ne5 {[%emt 0:02:30]} a6 {[%emt 0:03:51]} 15. a4 {[%emt 0:00:27]} Qc7 {[%emt 0:01:42]} 16. Bxf6 {[%emt 0:36:00]} Nxf6 {[%emt 0:00:44]} 17. b3 {[%emt 0:02:21]} Rad8 {[%emt 0:11:03]} 18. bxc4 {[%emt 0:01:34]} dxc4 {[%emt 0:00:16]} 19. Qe2 {[%emt 0:10:12]} Bc8 {[%emt 0:10:46]} 20. Bb1 {[%emt 0:00:57]} Be6 {[%emt 0:01:49]} 21. f4 {[%emt 0:02:15]} Bd6 {[%emt 0:06:41]} 22. Qc2 {[%emt 0:06:52]} Bb4 {[%emt 0:08:50]} 23. d5 {[%emt 0:16:54]} Bc8 {[%emt 0:00:38]} 24. Nc6 {[%emt 0:02:50]} Bxc3 {[%emt 0:06:45]} 25. Nxd8 {[%emt 0:00:47]} Rxd8 {[%emt 0:00:04]} 26. Qxc3 {[%emt 0:00:34]} Nxd5 {[%emt 0:00:29]} 27. Qd4 {[%emt 0:02:09]} Rd7 {[%emt 0:01:36]} 28. Qe4 {[%emt 0:08:17]} g6 {[%emt 0:06:57]} 29. Rxd5 {[%emt 0:01:31]} Rxd5 {[%emt 0:01:19]} 30. Qxd5 {[%emt 0:00:11]} Bb7 {[%emt 0:00:32]} 31. Qe5 {[%emt 0:01:25]} Qc6 {[%emt 0:00:22]} 32. e4 {[%emt 0:00:52]} b5 {[%emt 0:00:11]} 33. axb5 {[%emt 0:00:40]} axb5 {[%emt 0:00:03]} 34. Rd1 {[%emt 0:00:36]} Qb6+ {[%emt 0:00:46]} 35. Qd4 {[%emt 0:00:24]} Qc6 {[%emt 0:00:51]} 36. Qd6 {[%emt 0:05:17]} 1-0

[Event "5th Thessaloniki SKG Open-B 2024"]
[Site "Thessaloniki"]
[Date "2024.08.08"]
[Round "4.7"]
[White "Avanesyan, Aleksandr"]
[Black "Zlotogorski, Itay"]
[Result "1-0"]
[ECO "B12"]
[WhiteElo "1700"]
[BlackElo "1822"]
[Annotator "NA RC"]
[PlyCount "65"]
[EventDate "2024.08.05"]
[EventType "swiss"]
[EventCountry "GRE"]
[SourceTitle "playchess.com"]
[Source "ChessBase"]
[SourceQuality "1"]
[TimeControl "40/5400+30:1800+30"]

1. e4 {[%emt 0:00:03]} c6 {[%emt 0:00:13]} 2. d4 {[%emt 0:00:09]} d5 {[%emt 0:00:05]} 3. e5 {[%emt 0:00:06]} Bf5 {[%emt 0:00:11]} 4. h4 {[%emt 0:00:06]} h5 {[%emt 0:00:52]} 5. Bd3 {[%emt 0:00:12]} Bxd3 {[%emt 0:01:01]} 6. Qxd3 {[%emt 0:00:09]} e6 {[%emt 0:00:17]} 7. Nf3 {[%emt 0:00:22]} Be7 {[%emt 0:02:24]} 8. Bg5 {[%emt 0:00:28]} Nd7 {[%emt 0:02:27]} 9. O-O {[%emt 0:00:29]} Qb6 {[%emt 0:00:59]} 10. Nbd2 {[%emt 0:00:27]} O-O-O {[%emt 0:01:00]} 11. c4 {[%emt 0:01:22]} f6 {[%emt 0:01:46]} 12. Bf4 {[%emt 0:01:10]} Nh6 {[%emt 0:02:27]} 13. exf6 {[%emt 0:01:21]} Bxf6 {[%emt 0:02:22]} 14. c5 {[%emt 0:01:14]} Qb5 {[%emt 1:21:26]} 15. Qc3 {[%emt 0:03:15]} a5 {[%emt 0:00:00]} 16. a4 {[%emt 0:02:22]} Qb4 {[%emt 0:00:00]} 17. Qxb4 {[%emt 0:02:30]} axb4 {[%emt 0:00:00]} 18. Nb3 {[%emt 0:00:38]} Ng4 {[%emt 0:00:00]} 19. Bd6 {[%emt 0:14:04]} e5 {[%emt 0:00:00]} 20. a5 {[%emt 0:02:04]} e4 {[%emt 0:00:00]} 21. Ng5 {[%emt 0:00:34]} Bxg5 {[%emt 0:00:00]} 22. hxg5 {[%emt 0:00:01]} Nb8 {[%emt 0:00:00]} 23. Bxb8 {[%emt 0:05:34]} Kxb8 {[%emt 0:00:00]} 24. a6 {[%emt 0:00:16]} Rhf8 {[%emt 0:00:00]} 25. Na5 {[%emt 0:02:45]} Kc7 {[%emt 0:05:30]} 26. Nxb7 {[%emt 0:01:10]} Ra8 {[%emt 0:00:00]} 27. Nd6 {[%emt 0:02:32]} e3 {[%emt 0:00:00]} 28. f3 {[%emt 0:01:11]} Nf2 {[%emt 0:00:00]} 29. Rfe1 {[%emt 0:58:26]} Nd3 {[%emt 0:00:00]} 30. Rxe3 {[%emt 0:00:00]} Nxb2 {[%emt 0:00:00]} 31. Re7+ {[%emt 0:00:00]} Kd8 {[%emt 0:00:00]} 32. Rb7 {[%emt 0:00:00]} Nc4 {[%emt 0:00:00]} 33. a7 {[%emt 0:00:00]} 1-0

[Event "5th Thessaloniki SKG Open-B 2024"]
[Site "Thessaloniki"]
[Date "2024.08.09"]
[Round "5.1"]
[White "Polyzos, Vasileios"]
[Black "Naci, Igli"]
[Result "1/2-1/2"]
[ECO "C10"]
[WhiteElo "1700"]
[BlackElo "1800"]
[Annotator "NA RC"]
[PlyCount "90"]
[EventDate "2024.08.05"]
[EventType "swiss"]
[EventCountry "GRE"]
[SourceTitle "playchess.com"]
[Source "ChessBase"]
[SourceQuality "1"]
[TimeControl "40/5400+30:1800+30"]

1. e4 {[%emt 0:03:59]} e6 {[%emt 0:00:07]} 2. d4 {[%emt 0:00:43]} d5 {[%emt 0:00:07]} 3. Nc3 {[%emt 0:00:36]} dxe4 {[%emt 0:00:38]} 4. Nxe4 {[%emt 0:00:12]} Nd7 {[%emt 0:00:02]} 5. Nf3 {[%emt 0:02:49]} Ngf6 {[%emt 0:00:05]} 6. Nxf6+ {[%emt 0:00:08]} Nxf6 {[%emt 0:01:11]} 7. Bd3 {[%emt 0:03:25]} c5 {[%emt 0:00:16]} 8. c3 {[%emt 0:03:31]} Be7 {[%emt 0:01:21]} 9. O-O {[%emt 0:00:54]} O-O {[%emt 0:00:45]} 10. h3 {[%emt 0:13:42]} Qc7 {[%emt 0:01:02]} 11. Ne5 {[%emt 0:08:51]} b6 {[%emt 0:11:10]} 12. Bf4 {[%emt 0:04:13]} Qb7 {[%emt 0:04:24]} 13. Qe2 {[%emt 0:04:57]} a6 {[%emt 0:06:20]} 14. Ng4 {[%emt 0:07:40]} Nd5 {[%emt 0:07:12]} 15. Bh2 {[%emt 0:03:06]} cxd4 {[%emt 0:02:11]} 16. c4 {[%emt 0:06:35]} Nb4 {[%emt 0:02:35]} 17. Be4 {[%emt 0:00:50]} Nc6 {[%emt 0:04:07]} 18. Ne5 {[%emt 0:06:11]} Bd7 {[%emt 0:00:36]} 19. f4 {[%emt 0:05:17]} f5 {[%emt 0:05:47]} 20. Bf3 {[%emt 0:01:19]} Bc5 {[%emt 0:10:39]} 21. Kh1 {[%emt 0:03:23]} Rae8 {[%emt 0:00:10]} 22. a3 {[%emt 0:06:03]} a5 {[%emt 0:01:41]} 23. Bg1 {[%emt 0:01:23]} Qc7 {[%emt 0:00:45]} 24. Rfd1 {[%emt 0:01:46]} Nxe5 {[%emt 0:01:05]} 25. Qxe5 {[%emt 0:02:54]} Qxe5 {[%emt 0:01:34]} 26. fxe5 {[%emt 0:00:07]} Ba4 {[%emt 0:00:35]} 27. Rd3 {[%emt 0:04:02]} Bc2 {[%emt 0:00:53]} 28. Rd2 {[%emt 0:00:42]} d3 {[%emt 0:00:41]} 29. Bd1 {[%emt 0:01:35]} Rd8 {[%emt 0:10:07]} 30. Rc1 {[%emt 0:00:06]} Kf7 {[%emt 0:01:53]} 31. Bxc2 {[%emt 0:00:35]} dxc2 {[%emt 0:00:04]} 32. Rcxc2 {[%emt 0:00:11]} Ke7 {[%emt 0:00:33]} 33. Bxc5+ {[%emt 0:01:37]} bxc5 {[%emt 0:00:06]} 34. Kg1 {[%emt 0:00:52]} Rxd2 {[%emt 0:02:09]} 35. Rxd2 {[%emt 0:00:06]} Rd8 {[%emt 0:00:40]} 36. Rxd8 {[%emt 0:00:29]} Kxd8 {[%emt 0:00:04]} 37. h4 {[%emt 0:02:14]} Ke7 {[%emt 0:04:29]} 38. Kf2 {[%emt 0:00:23]} g6 {[%emt 0:08:24]} 39. Kf3 {[%emt 0:01:30]} h6 {[%emt 0:00:56]} 40. Kf4 {[%emt 0:00:00]} Kf7 {[%emt 0:00:00]} 41. b3 {[%emt 0:09:06]} Ke7 {[%emt 0:02:10]} 42. a4 {[%emt 0:03:43]} Kf7 {[%emt 0:00:35]} 43. g3 {[%emt 0:06:45]} Kg7 {[%emt 0:00:39]} 44. Kf3 {[%emt 0:00:54]} Kf7 {[%emt 0:04:08]} 45. Ke3 {[%emt 0:01:55]} Ke8 {[%emt 0:00:34]} 1/2-1/2

[Event "5th Thessaloniki SKG Open-B 2024"]
[Site "Thessaloniki"]
[Date "2024.08.09"]
[Round "5.2"]
[White "Pantoglou, Dimitrios"]
[Black "Avanesyan, Aleksandr"]
[Result "0-1"]
[ECO "D43"]
[WhiteElo "1893"]
[BlackElo "1700"]
[Annotator "NA RC"]
[PlyCount "178"]
[EventDate "2024.08.05"]
[EventType "swiss"]
[EventCountry "GRE"]
[SourceTitle "playchess.com"]
[Source "ChessBase"]
[SourceQuality "1"]
[TimeControl "40/5400+30:1800+30"]

1. d4 {[%emt 0:06:00]} d5 {[%emt 0:00:06]} 2. c4 {[%emt 0:00:26]} c6 {[%emt 0:00:09]} 3. Nc3 {[%emt 0:00:11]} Nf6 {[%emt 0:00:07]} 4. Nf3 {[%emt 0:00:08]} e6 {[%emt 0:00:06]} 5. Bg5 {[%emt 0:00:12]} h6 {[%emt 0:00:05]} 6. Bh4 {[%emt 0:00:11]} dxc4 {[%emt 0:00:10]} 7. e4 {[%emt 0:00:11]} g5 {[%emt 0:00:14]} 8. Bg3 {[%emt 0:00:09]} b5 {[%emt 0:00:09]} 9. Be2 {[%emt 0:00:09]} Nbd7 {[%emt 0:01:44]} 10. d5 {[%emt 0:00:14]} exd5 {[%emt 0:06:01]} 11. exd5 {[%emt 0:00:10]} b4 {[%emt 0:09:30]} 12. dxc6 {[%emt 0:01:24]} bxc3 {[%emt 0:01:38]} 13. cxd7+ {[%emt 0:01:28]} Qxd7 {[%emt 0:01:12]} 14. Qc2 {[%emt 0:00:30]} Bg7 {[%emt 0:19:44]} 15. Qxc3 {[%emt 0:13:19]} O-O {[%emt 0:04:31]} 16. Rd1 {[%emt 0:03:30]} Ne4 {[%emt 0:04:53]} 17. Qxc4 {[%emt 0:05:03]} Qe6 {[%emt 0:01:56]} 18. b3 {[%emt 0:37:09]} Nxg3 {[%emt 0:15:51]} 19. hxg3 {[%emt 0:10:27]} Re8 {[%emt 0:01:26]} 20. O-O {[%emt 0:02:30]} g4 {[%emt 0:04:51]} 21. Qxe6 {[%emt 0:07:31]} Bxe6 {[%emt 0:00:33]} 22. Bb5 {[%emt 0:04:49]} Reb8 {[%emt 0:11:47]} 23. Bc6 {[%emt 0:00:16]} gxf3 {[%emt 0:00:04]} 24. gxf3 {[%emt 0:01:24]} a5 {[%emt 0:00:11]} 25. Bxa8 {[%emt 0:00:12]} Rxa8 {[%emt 0:00:01]} 26. Rd2 {[%emt 0:03:49]} a4 {[%emt 0:00:42]} 27. Rfd1 {[%emt 0:00:26]} axb3 {[%emt 0:03:55]} 28. Rd8+ {[%emt 0:01:32]} Rxd8 {[%emt 0:00:05]} 29. Rxd8+ {[%emt 0:00:08]} Kh7 {[%emt 0:00:05]} 30. axb3 {[%emt 0:00:11]} Bxb3 {[%emt 0:00:05]} 31. f4 {[%emt 0:00:56]} Be6 {[%emt 0:01:45]} 32. f3 {[%emt 0:00:18]} Bf6 {[%emt 0:00:46]} 33. Rd1 {[%emt 0:00:52]} h5 {[%emt 0:01:28]} 34. Kf2 {[%emt 0:00:05]} Kg6 {[%emt 0:03:10]} 35. Ke3 {[%emt 0:00:13]} Be7 {[%emt 0:01:30]} 36. Ke4 {[%emt 0:00:27]} Bc5 {[%emt 0:01:08]} 37. Rd2 {[%emt 0:01:13]} Bb4 {[%emt 0:00:41]} 38. Rd8 {[%emt 0:00:36]} Bc3 {[%emt 0:01:08]} 39. Rg8+ {[%emt 0:00:31]} Bg7 {[%emt 0:00:09]} 40. Rb8 {[%emt 0:00:00]} Bf5+ {[%emt 0:00:00]} 41. Ke3 {[%emt 0:03:13]} Bc3 {[%emt 0:04:43]} 42. Rb5 {[%emt 0:04:29]} Bf6 {[%emt 0:01:15]} 43. Rd5 {[%emt 0:03:32]} Be6 {[%emt 0:01:10]} 44. Rd2 {[%emt 0:00:28]} Bc3 {[%emt 0:00:56]} 45. Rc2 {[%emt 0:00:55]} Bf6 {[%emt 0:00:16]} 46. Rg2 {[%emt 0:01:45]} Bd5 {[%emt 0:01:13]} 47. Rg1 {[%emt 0:01:40]} Be7 {[%emt 0:00:25]} 48. Rf1 {[%emt 0:02:44]} Be6 {[%emt 0:01:55]} 49. Ke4 {[%emt 0:01:32]} Bf5+ {[%emt 0:00:54]} 50. Ke5 {[%emt 0:00:23]} Bf6+ {[%emt 0:00:10]} 51. Kd6 {[%emt 0:00:12]} Be6 {[%emt 0:01:46]} 52. Rg1 {[%emt 0:00:43]} Kf5 {[%emt 0:01:21]} 53. Rg2 {[%emt 0:01:37]} h4 {[%emt 0:01:05]} 54. gxh4 {[%emt 0:00:50]} Bxh4 {[%emt 0:00:27]} 55. Rg4 {[%emt 0:00:40]} Be1 {[%emt 0:00:47]} 56. Ke7 {[%emt 0:05:12]} Bb4+ {[%emt 0:01:27]} 57. Ke8 {[%emt 0:00:14]} Bd2 {[%emt 0:00:23]} 58. Ke7 {[%emt 0:08:02]} Bb4+ {[%emt 0:01:41]} 59. Ke8 {[%emt 0:00:10]} Bd6 {[%emt 0:00:06]} 60. Rg7 {[%emt 0:02:35]} f6 {[%emt 0:00:53]} 61. Rg4 {[%emt 0:00:37]} Bxf4 {[%emt 0:00:36]} 62. Ke7 {[%emt 0:00:17]} Bd2 {[%emt 0:00:46]} 63. Kd6 {[%emt 0:00:31]} Bc1 {[%emt 0:01:16]} 64. Ra4 {[%emt 0:00:45]} Bb2 {[%emt 0:00:43]} 65. Ke7 {[%emt 0:00:32]} Bc3 {[%emt 0:02:42]} 66. Rh4 {[%emt 0:00:30]} Bb3 {[%emt 0:02:15]} 67. Re4 {[%emt 0:00:30]} Bd5 {[%emt 0:00:49]} 68. Ra4 {[%emt 0:00:30]} Bxf3 {[%emt 0:00:38]} 69. Kd6 {[%emt 0:00:30]} Be5+ {[%emt 0:00:19]} 70. Kc5 {[%emt 0:00:30]} Be4 {[%emt 0:00:17]} 71. Kc4 {[%emt 0:00:29]} Kf4 {[%emt 0:01:10]} 72. Ra2 {[%emt 0:00:29]} f5 {[%emt 0:00:15]} 73. Rd2 {[%emt 0:00:33]} Ke3 {[%emt 0:00:21]} 74. Rd8 {[%emt 0:00:24]} f4 {[%emt 0:00:19]} 75. Rf8 {[%emt 0:00:34]} f3 {[%emt 0:00:17]} 76. Rxf3+ {[%emt 0:00:30]} Kxf3 {[%emt 0:00:13]} 77. Kc5 {[%emt 0:00:06]} Ke3 {[%emt 0:00:14]} 78. Kc4 {[%emt 0:00:09]} Bd4 {[%emt 0:00:08]} 79. Kb4 {[%emt 0:01:15]} Bd5 {[%emt 0:00:13]} 80. Kb5 {[%emt 0:00:08]} Kd3 {[%emt 0:00:05]} 81. Kb4 {[%emt 0:00:16]} Bc4 {[%emt 0:00:48]} 82. Ka4 {[%emt 0:00:19]} Kc3 {[%emt 0:00:14]} 83. Ka5 {[%emt 0:00:17]} Bc5 {[%emt 0:00:08]} 84. Ka4 {[%emt 0:00:12]} Bb6 {[%emt 0:00:05]} 85. Ka3 {[%emt 0:00:06]} Bb5 {[%emt 0:00:07]} 86. Ka2 {[%emt 0:00:02]} Kc2 {[%emt 0:00:06]} 87. Ka1 {[%emt 0:00:26]} Bc5 {[%emt 0:00:07]} 88. Ka2 {[%emt 0:00:08]} Bc4+ {[%emt 0:00:03]} 89. Ka1 {[%emt 0:00:10]} Bd4# {[%emt 0:00:01]} 0-1

[Event "5th Thessaloniki SKG Open-B 2024"]
[Site "Thessaloniki"]
[Date "2024.08.09"]
[Round "5.3"]
[White "Chalkias, Michail Panagiotis"]
[Black "Triantaphylidis, Alexandros I"]
[Result "0-1"]
[ECO "D31"]
[WhiteElo "1772"]
[BlackElo "1745"]
[Annotator "NA RC"]
[PlyCount "38"]
[EventDate "2024.08.05"]
[EventType "swiss"]
[EventCountry "GRE"]
[SourceTitle "playchess.com"]
[Source "ChessBase"]
[SourceQuality "1"]
[TimeControl "40/5400+30:1800+30"]

1. d4 {[%emt 0:00:34]} d5 {[%emt 0:00:06]} 2. c4 {[%emt 0:00:04]} e6 {[%emt 0:00:06]} 3. Nc3 {[%emt 0:01:12]} a6 {[%emt 0:00:58]} 4. cxd5 {[%emt 0:00:34]} exd5 {[%emt 0:00:07]} 5. Nf3 {[%emt 0:00:26]} h6 {[%emt 0:00:11]} 6. Bf4 {[%emt 0:00:49]} Nf6 {[%emt 0:00:08]} 7. h3 {[%emt 0:00:20]} Bd6 {[%emt 0:00:18]} 8. Be5 {[%emt 0:01:52]} c6 {[%emt 0:01:51]} 9. e3 {[%emt 0:00:09]} Bxe5 {[%emt 0:12:23]} 10. dxe5 {[%emt 0:03:31]} Ne4 {[%emt 0:01:40]} 11. Qd4 {[%emt 0:06:43]} Nxc3 {[%emt 0:02:36]} 12. Qxc3 {[%emt 0:00:14]} O-O {[%emt 0:01:39]} 13. Bd3 {[%emt 0:00:42]} Qe7 {[%emt 0:03:22]} 14. O-O {[%emt 0:01:03]} c5 {[%emt 0:01:01]} 15. Rad1 {[%emt 0:00:55]} Be6 {[%emt 0:01:18]} 16. Bb1 {[%emt 0:01:20]} Nc6 {[%emt 0:02:35]} 17. Nh2 {[%emt 0:01:35]} d4 {[%emt 0:14:04]} 18. exd4 {[%emt 0:01:22]} Nxd4 {[%emt 0:03:31]} 19. Nf3 {[%emt 0:00:09]} Ne2+ {[%emt 0:00:42]} 0-1